[Event "HUN-ch U8-U18 2019"]
[Site "Balatonlelle"]
[Date "2019.06.24"]
[Round "5.16"]
[White "Horvath, Balazs"]
[Black "Pogany, Zsombor"]
[Result "1-0"]
[ECO "B03"]
[WhiteElo "2139"]
[BlackElo "2121"]
[Annotator "NA"]
[PlyCount "45"]
[EventDate "2019.06.21"]
[EventType "swiss"]
[EventCountry "HUN"]
[SourceTitle "playchess.com"]
[Source "ChessBase"]
[SourceQuality "1"]
[TimeControl "40/5400+30:1800+30"]

1. e4 {[%emt 0:00:31]} Nf6 {[%emt 0:00:11]} 2. e5 {[%emt 0:00:10]} Nd5 {[%emt 0:00:05]} 3. c4 {[%emt 0:00:18]} Nb6 {[%emt 0:00:05]} 4. d4 {[%emt 0:01:08]} d6 {[%emt 0:00:05]} 5. exd6 {[%emt 0:02:24]} cxd6 {[%emt 0:00:06]} 6. h3 {[%emt 0:00:56]} g6 {[%emt 0:00:19]} 7. Nf3 {[%emt 0:00:20]} Bg7 {[%emt 0:00:13]} 8. Nc3 {[%emt 0:01:01]} O-O {[%emt 0:00:43]} 9. Be2 {[%emt 0:00:17]} Bf5 {[%emt 0:00:54]} 10. O-O {[%emt 0:00:24]} d5 {[%emt 0:00:38]} 11. c5 {[%emt 0:00:42]} Nc8 {[%emt 0:00:12]} 12. Qb3 {[%emt 0:00:32]} b6 {[%emt 0:18:44]} 13. Qxd5 {[%emt 0:12:20]} Qxd5 {[%emt 0:00:32]} 14. Nxd5 {[%emt 0:00:08]} Nc6 {[%emt 0:00:20]} 15. Nc7 {[%emt 0:01:28]} Rb8 {[%emt 0:00:20]} 16. Na6 {[%emt 0:01:43]} Ra8 {[%emt 0:01:59]} 17. Bb5 {[%emt 0:26:47]} Be4 {[%emt 0:04:54]} 18. d5 {[%emt 0:24:55]} Na5 {[%emt 0:06:17]} 19. Bd2 {[%emt 0:16:28]} Bxd5 {[%emt 0:01:48]} 20. Nc7 {[%emt 0:00:42]} Bxf3 {[%emt 0:00:11]} 21. gxf3 {[%emt 0:00:21]} Rb8 {[%emt 0:00:34]} 22. Na6 {[%emt 0:00:08]} Be5 {[%emt 0:09:31]} 23. f4 {[%emt 0:01:08]} 1-0

[Event "HUN-ch U8-U18 2019"]
[Site "Balatonlelle"]
[Date "2019.06.24"]
[Round "5.16"]
[White "Farkas, Otto Jr."]
[Black "Fesus, Marcell"]
[Result "1-0"]
[ECO "B43"]
[WhiteElo "1859"]
[BlackElo "1426"]
[Annotator "NA"]
[PlyCount "91"]
[EventDate "2019.06.21"]
[EventType "swiss"]
[EventCountry "HUN"]
[SourceTitle "playchess.com"]
[Source "ChessBase"]
[SourceQuality "1"]
[TimeControl "40/5400+30:1800+30"]

1. e4 {[%emt 0:00:02]} c5 {[%emt 0:00:06]} 2. Nf3 {[%emt 0:00:05]} e6 {[%emt 0:00:08]} 3. d4 {[%emt 0:00:11]} cxd4 {[%emt 0:00:07]} 4. Nxd4 {[%emt 0:00:05]} a6 {[%emt 0:00:07]} 5. Nc3 {[%emt 0:00:09]} b5 {[%emt 0:00:07]} 6. Qd3 {[%emt 0:08:25]} Bb7 {[%emt 0:03:05]} 7. Be3 {[%emt 0:03:29]} d6 {[%emt 0:01:42]} 8. f3 {[%emt 0:00:26]} Nf6 {[%emt 0:02:34]} 9. O-O-O {[%emt 0:01:20]} Qc7 {[%emt 0:05:05]} 10. Kb1 {[%emt 0:00:33]} Nc6 {[%emt 0:05:29]} 11. Nxc6 {[%emt 0:04:04]} Bxc6 {[%emt 0:04:32]} 12. Qd2 {[%emt 0:04:53]} d5 {[%emt 0:03:08]} 13. exd5 {[%emt 0:06:36]} Nxd5 {[%emt 0:00:13]} 14. Nxd5 {[%emt 0:00:11]} Bxd5 {[%emt 0:00:21]} 15. Bd4 {[%emt 0:02:09]} Rd8 {[%emt 0:10:46]} 16. b3 {[%emt 0:05:59]} f6 {[%emt 0:14:06]} 17. Qe3 {[%emt 0:07:01]} Rc8 {[%emt 0:05:55]} 18. Bd3 {[%emt 0:00:53]} Be7 {[%emt 0:02:51]} 19. h4 {[%emt 0:04:11]} Qb7 {[%emt 0:06:47]} 20. Rhe1 {[%emt 0:01:49]} e5 {[%emt 0:01:25]} 21. Bb2 {[%emt 0:04:21]} Bf7 {[%emt 0:00:49]} 22. Be4 {[%emt 0:02:21]} Qc7 {[%emt 0:00:47]} 23. Bf5 {[%emt 0:04:22]} Rd8 {[%emt 0:02:30]} 24. Rxd8+ {[%emt 0:01:57]} Qxd8 {[%emt 0:02:54]} 25. f4 {[%emt 0:01:52]} exf4 {[%emt 0:01:05]} 26. Qe2 {[%emt 0:00:58]} Bg6 {[%emt 0:01:03]} 27. Bxg6+ {[%emt 0:00:42]} hxg6 {[%emt 0:00:22]} 28. Ba3 {[%emt 0:00:28]} Kf7 {[%emt 0:02:19]} 29. Qe6+ {[%emt 0:00:14]} Ke8 {[%emt 0:00:08]} 30. Bxe7 {[%emt 0:01:14]} Qd7 {[%emt 0:00:36]} 31. Qxa6 {[%emt 0:02:12]} Kf7 {[%emt 0:00:45]} 32. Bb4 {[%emt 0:02:06]} Re8 {[%emt 0:00:46]} 33. Rxe8 {[%emt 0:00:39]} Qxe8 {[%emt 0:00:17]} 34. Qb7+ {[%emt 0:00:14]} Kg8 {[%emt 0:00:04]} 35. Qd5+ {[%emt 0:00:28]} Kh7 {[%emt 0:00:10]} 36. Qf3 {[%emt 0:01:54]} g5 {[%emt 0:00:34]} 37. hxg5 {[%emt 0:03:01]} fxg5 {[%emt 0:00:05]} 38. g3 {[%emt 0:02:00]} fxg3 {[%emt 0:00:33]} 39. Qxg3 {[%emt 0:00:51]} Qe4 {[%emt 0:00:27]} 40. Qd3 {[%emt 0:00:00]} Qxd3 {[%emt 0:00:00]} 41. cxd3 {[%emt 0:04:30]} Kg6 {[%emt 0:00:28]} 42. a4 {[%emt 0:00:34]} bxa4 {[%emt 0:00:07]} 43. bxa4 {[%emt 0:00:07]} g4 {[%emt 0:00:06]} 44. a5 {[%emt 0:00:14]} g3 {[%emt 0:00:04]} 45. a6 {[%emt 0:00:19]} g2 {[%emt 0:00:05]} 46. Bc5 {[%emt 0:00:07]} 1-0

[Event "HUN-ch U8-U18 2019"]
[Site "Balatonlelle"]
[Date "2019.06.24"]
[Round "5.17"]
[White "Acs, Marton"]
[Black "Monduk, Ferenc"]
[Result "1-0"]
[ECO "A05"]
[WhiteElo "2138"]
[BlackElo "1717"]
[Annotator "NA"]
[PlyCount "39"]
[EventDate "2019.06.21"]
[EventType "swiss"]
[EventCountry "HUN"]
[SourceTitle "playchess.com"]
[Source "ChessBase"]
[SourceQuality "1"]
[TimeControl "40/5400+30:1800+30"]

1. Nf3 {[%emt 0:00:04]} Nf6 {[%emt 0:00:05]} 2. g3 {[%emt 0:00:05]} g6 {[%emt 0:00:02]} 3. Bg2 {[%emt 0:00:07]} Bg7 {[%emt 0:00:05]} 4. O-O {[%emt 0:00:10]} O-O {[%emt 0:00:03]} 5. d4 {[%emt 0:00:05]} d6 {[%emt 0:00:11]} 6. b3 {[%emt 0:00:15]} c5 {[%emt 0:00:39]} 7. Bb2 {[%emt 0:00:57]} cxd4 {[%emt 0:01:23]} 8. Nxd4 {[%emt 0:00:09]} Nbd7 {[%emt 0:01:38]} 9. c4 {[%emt 0:00:45]} a6 {[%emt 0:01:43]} 10. Nc3 {[%emt 0:00:58]} e5 {[%emt 0:01:27]} 11. Nc2 {[%emt 0:01:18]} Nc5 {[%emt 0:01:16]} 12. Qd2 {[%emt 0:05:37]} Qe7 {[%emt 0:03:27]} 13. Rad1 {[%emt 0:05:29]} Rd8 {[%emt 0:02:57]} 14. Ne3 {[%emt 0:00:29]} Be6 {[%emt 0:03:14]} 15. b4 {[%emt 0:01:59]} Ncd7 {[%emt 0:07:32]} 16. Bxb7 {[%emt 0:04:39]} Ra7 {[%emt 0:04:04]} 17. Bg2 {[%emt 0:09:54]} Rb8 {[%emt 0:08:00]} 18. Ncd5 {[%emt 0:28:09]} Nxd5 {[%emt 0:01:19]} 19. cxd5 {[%emt 0:01:17]} Bf5 {[%emt 0:00:36]} 20. g4 {[%emt 0:00:08]} 1-0

[Event "HUN-ch U8-U18 2019"]
[Site "Balatonlelle"]
[Date "2019.06.24"]
[Round "5.17"]
[White "Palczert, Matyas"]
[Black "Szegedy, Matyas"]
[Result "1-0"]
[ECO "B13"]
[WhiteElo "2007"]
[BlackElo "1806"]
[Annotator "NA"]
[PlyCount "45"]
[EventDate "2019.06.21"]
[EventType "swiss"]
[EventCountry "HUN"]
[SourceTitle "playchess.com"]
[Source "ChessBase"]
[SourceQuality "1"]
[TimeControl "40/5400+30:1800+30"]

1. e4 {[%emt 0:00:33]} c6 {[%emt 0:00:10]} 2. d4 {[%emt 0:00:15]} d5 {[%emt 0:00:12]} 3. exd5 {[%emt 0:00:22]} cxd5 {[%emt 0:00:20]} 4. Bd3 {[%emt 0:00:20]} Nc6 {[%emt 0:00:18]} 5. c3 {[%emt 0:00:19]} Nf6 {[%emt 0:00:30]} 6. h3 {[%emt 0:00:13]} g6 {[%emt 0:01:21]} 7. Nf3 {[%emt 0:00:59]} Bg7 {[%emt 0:01:20]} 8. O-O {[%emt 0:00:53]} O-O {[%emt 0:02:11]} 9. Re1 {[%emt 0:01:18]} a6 {[%emt 0:06:39]} 10. Nbd2 {[%emt 0:03:06]} b6 {[%emt 0:04:44]} 11. a4 {[%emt 0:03:43]} Bb7 {[%emt 0:05:48]} 12. b4 {[%emt 0:07:38]} Qc7 {[%emt 0:07:29]} 13. Ba3 {[%emt 0:02:36]} Rfe8 {[%emt 0:09:28]} 14. b5 {[%emt 0:08:50]} axb5 {[%emt 0:02:02]} 15. Bxb5 {[%emt 0:00:48]} e6 {[%emt 0:10:46]} 16. Rc1 {[%emt 0:04:32]} Ba6 {[%emt 0:08:07]} 17. c4 {[%emt 0:01:18]} Rec8 {[%emt 0:06:52]} 18. cxd5 {[%emt 0:03:07]} Bxb5 {[%emt 0:00:35]} 19. axb5 {[%emt 0:00:23]} Rxa3 {[%emt 0:00:13]} 20. Rxc6 {[%emt 0:00:30]} Qb7 {[%emt 0:00:57]} 21. Nc4 {[%emt 0:01:06]} Rxf3 {[%emt 0:02:33]} 22. Qxf3 {[%emt 0:02:13]} Nxd5 {[%emt 0:00:12]} 23. Nd6 {[%emt 0:00:37]} 1-0

[Event "HUN-ch U8-U18 2019"]
[Site "Balatonlelle"]
[Date "2019.06.24"]
[Round "5.18"]
[White "Kresz, Adam"]
[Black "Kaloczi, Kristof"]
[Result "0-1"]
[ECO "B33"]
[WhiteElo "1949"]
[BlackElo "2098"]
[Annotator "NA"]
[PlyCount "84"]
[EventDate "2019.06.21"]
[EventType "swiss"]
[EventCountry "HUN"]
[SourceTitle "playchess.com"]
[Source "ChessBase"]
[SourceQuality "1"]
[TimeControl "40/5400+30:1800+30"]

1. e4 {[%emt 0:00:02]} c5 {[%emt 0:00:08]} 2. Nf3 {[%emt 0:00:06]} Nc6 {[%emt 0:00:04]} 3. d4 {[%emt 0:00:08]} cxd4 {[%emt 0:00:05]} 4. Nxd4 {[%emt 0:00:05]} Nf6 {[%emt 0:00:06]} 5. Nc3 {[%emt 0:00:08]} e5 {[%emt 0:00:15]} 6. Ndb5 {[%emt 0:00:08]} d6 {[%emt 0:00:08]} 7. Bg5 {[%emt 0:00:11]} a6 {[%emt 0:00:08]} 8. Na3 {[%emt 0:00:07]} b5 {[%emt 0:00:04]} 9. Bxf6 {[%emt 0:00:08]} gxf6 {[%emt 0:00:05]} 10. Nd5 {[%emt 0:00:09]} Bg7 {[%emt 0:00:11]} 11. c3 {[%emt 0:00:34]} f5 {[%emt 0:00:35]} 12. Nxb5 {[%emt 0:01:32]} axb5 {[%emt 0:04:19]} 13. Bxb5 {[%emt 0:00:08]} Bd7 {[%emt 0:05:16]} 14. exf5 {[%emt 0:00:12]} O-O {[%emt 0:08:56]} 15. Qg4 {[%emt 0:00:13]} f6 {[%emt 0:01:08]} 16. O-O {[%emt 0:02:44]} Kh8 {[%emt 0:07:03]} 17. a4 {[%emt 0:08:35]} Rb8 {[%emt 0:05:27]} 18. Rfd1 {[%emt 0:20:17]} Ne7 {[%emt 0:14:32]} 19. Nxe7 {[%emt 0:03:38]} Qxe7 {[%emt 0:00:13]} 20. c4 {[%emt 0:01:00]} Rfc8 {[%emt 0:05:36]} 21. Qe4 {[%emt 0:04:56]} Bf8 {[%emt 0:03:30]} 22. Rd3 {[%emt 0:11:46]} Bxb5 {[%emt 0:10:00]} 23. axb5 {[%emt 0:00:19]} Qc7 {[%emt 0:00:50]} 24. b3 {[%emt 0:02:10]} Qb7 {[%emt 0:08:27]} 25. Qh4 {[%emt 0:18:24]} Qf7 {[%emt 0:01:19]} 26. Qe4 {[%emt 0:08:30]} Rd8 {[%emt 0:04:01]} 27. Rd5 {[%emt 0:02:22]} Rdc8 {[%emt 0:04:07]} 28. h3 {[%emt 0:00:59]} Rc5 {[%emt 0:01:43]} 29. Rxc5 {[%emt 0:00:53]} dxc5 {[%emt 0:00:02]} 30. Qc6 {[%emt 0:00:31]} Kg7 {[%emt 0:03:11]} 31. b6 {[%emt 0:04:00]} Rb7 {[%emt 0:01:20]} 32. Qxb7 {[%emt 0:00:22]} Qxb7 {[%emt 0:00:10]} 33. Ra7 {[%emt 0:00:05]} Qf7 {[%emt 0:00:15]} 34. Rxf7+ {[%emt 0:00:53]} Kxf7 {[%emt 0:00:03]} 35. g4 {[%emt 0:08:22]} Ke8 {[%emt 0:03:31]} 36. b7 {[%emt 0:00:46]} Bd6 {[%emt 0:00:06]} 37. h4 {[%emt 0:00:19]} Kd7 {[%emt 0:01:41]} 38. b4 {[%emt 0:01:30]} cxb4 {[%emt 0:01:36]} 39. c5 {[%emt 0:00:06]} Bc7 {[%emt 0:00:25]} 40. g5 {[%emt 0:00:00]} fxg5 {[%emt 0:00:00]} 41. hxg5 {[%emt 0:01:07]} b3 {[%emt 0:01:02]} 42. g6 {[%emt 0:00:45]} hxg6 {[%emt 0:00:05]} 0-1

[Event "HUN-ch U8-U18 2019"]
[Site "Balatonlelle"]
[Date "2019.06.24"]
[Round "5.18"]
[White "Bodrogi, Bendeguz"]
[Black "Tancsa, Tamas"]
[Result "0-1"]
[ECO "A10"]
[WhiteElo "1925"]
[BlackElo "2158"]
[Annotator "NA"]
[PlyCount "112"]
[EventDate "2019.06.21"]
[EventType "swiss"]
[EventCountry "HUN"]
[SourceTitle "playchess.com"]
[Source "ChessBase"]
[SourceQuality "1"]
[TimeControl "40/5400+30:1800+30"]

1. c4 {[%emt 0:00:14]} d6 {[%emt 0:00:21]} 2. g3 {[%emt 0:00:40]} e5 {[%emt 0:01:04]} 3. Bg2 {[%emt 0:00:39]} g6 {[%emt 0:00:38]} 4. Nc3 {[%emt 0:02:00]} Bg7 {[%emt 0:01:05]} 5. e3 {[%emt 0:01:19]} f5 {[%emt 0:02:04]} 6. Nge2 {[%emt 0:00:56]} Nf6 {[%emt 0:01:17]} 7. b3 {[%emt 0:01:37]} O-O {[%emt 0:00:59]} 8. O-O {[%emt 0:03:11]} Nc6 {[%emt 0:00:25]} 9. Bb2 {[%emt 0:01:36]} g5 {[%emt 0:02:04]} 10. f4 {[%emt 0:02:03]} gxf4 {[%emt 0:04:20]} 11. exf4 {[%emt 0:01:04]} e4 {[%emt 0:04:01]} 12. d3 {[%emt 0:06:16]} Ng4 {[%emt 0:02:42]} 13. dxe4 {[%emt 0:03:52]} Ne3 {[%emt 0:00:30]} 14. Qd2 {[%emt 0:00:12]} Nxf1 {[%emt 0:02:16]} 15. Rxf1 {[%emt 0:00:09]} Qf6 {[%emt 0:04:22]} 16. Ba1 {[%emt 0:02:34]} Be6 {[%emt 0:03:52]} 17. Nd5 {[%emt 0:03:39]} Qf7 {[%emt 0:00:30]} 18. Nec3 {[%emt 0:01:20]} Rac8 {[%emt 0:02:30]} 19. Re1 {[%emt 0:02:41]} Kh8 {[%emt 0:03:08]} 20. exf5 {[%emt 0:10:19]} Bxf5 {[%emt 0:01:03]} 21. Ne4 {[%emt 0:00:51]} Rfe8 {[%emt 0:02:23]} 22. Ng5 {[%emt 0:03:33]} Qg6 {[%emt 0:02:09]} 23. b4 {[%emt 0:14:54]} Rxe1+ {[%emt 0:02:39]} 24. Qxe1 {[%emt 0:00:26]} Bxa1 {[%emt 0:00:03]} 25. Qxa1+ {[%emt 0:00:37]} Qg7 {[%emt 0:00:29]} 26. Qxg7+ {[%emt 0:01:56]} Kxg7 {[%emt 0:00:24]} 27. b5 {[%emt 0:00:10]} Nd4 {[%emt 0:00:32]} 28. Ne7 {[%emt 0:00:33]} Re8 {[%emt 0:00:24]} 29. Nxf5+ {[%emt 0:00:28]} Nxf5 {[%emt 0:00:02]} 30. Bxb7 {[%emt 0:01:01]} Re1+ {[%emt 0:00:23]} 31. Kf2 {[%emt 0:00:26]} Ra1 {[%emt 0:00:07]} 32. Ne6+ {[%emt 0:02:42]} Kf6 {[%emt 0:00:11]} 33. Nxc7 {[%emt 0:00:53]} Rxa2+ {[%emt 0:00:05]} 34. Kf3 {[%emt 0:03:49]} Rxh2 {[%emt 0:01:12]} 35. Nd5+ {[%emt 0:00:16]} Kf7 {[%emt 0:01:03]} 36. Ne3 {[%emt 0:02:22]} Ne7 {[%emt 0:05:29]} 37. g4 {[%emt 0:02:58]} Rd2 {[%emt 0:04:23]} 38. Ke4 {[%emt 0:00:24]} Rf2 {[%emt 0:01:43]} 39. Nf5 {[%emt 0:04:31]} Ng6 {[%emt 0:01:28]} 40. Nxd6+ {[%emt 0:00:00]} Ke6 {[%emt 0:00:00]} 41. f5+ {[%emt 0:01:20]} Kxd6 {[%emt 0:00:51]} 42. fxg6 {[%emt 0:00:11]} hxg6 {[%emt 0:00:02]} 43. Ke3 {[%emt 0:09:07]} Rf8 {[%emt 0:01:11]} 44. Kd4 {[%emt 0:02:02]} Rf4+ {[%emt 0:00:13]} 45. Be4 {[%emt 0:00:21]} Rxg4 {[%emt 0:00:26]} 46. c5+ {[%emt 0:00:05]} Kc7 {[%emt 0:00:37]} 47. Ke5 {[%emt 0:00:49]} Rg5+ {[%emt 0:00:19]} 48. Kd4 {[%emt 0:00:05]} Rg1 {[%emt 0:00:26]} 49. Ke3 {[%emt 0:02:56]} Re1+ {[%emt 0:00:39]} 50. Kf3 {[%emt 0:01:55]} g5 {[%emt 0:01:03]} 51. Bf5 {[%emt 0:05:15]} Kb8 {[%emt 0:02:46]} 52. b6 {[%emt 0:05:19]} a5 {[%emt 0:00:05]} 53. c6 {[%emt 0:00:04]} Rc1 {[%emt 0:00:09]} 54. Be4 {[%emt 0:03:29]} a4 {[%emt 0:00:40]} 55. c7+ {[%emt 0:00:06]} Kc8 {[%emt 0:00:05]} 56. Bd5 {[%emt 0:00:16]} a3 {[%emt 0:01:21]} 0-1

[Event "HUN-ch U8-U18 2019"]
[Site "Balatonlelle"]
[Date "2019.06.24"]
[Round "5.19"]
[White "Szabo, A. Martin"]
[Black "Kovacs, Gabor Etele"]
[Result "0-1"]
[ECO "D44"]
[WhiteElo "1946"]
[BlackElo "2062"]
[Annotator "NA"]
[PlyCount "100"]
[EventDate "2019.06.21"]
[EventType "swiss"]
[EventCountry "HUN"]
[SourceTitle "playchess.com"]
[Source "ChessBase"]
[SourceQuality "1"]
[TimeControl "40/5400+30:1800+30"]

1. d4 {[%emt 0:00:46]} d5 {[%emt 0:00:07]} 2. c4 {[%emt 0:00:04]} e6 {[%emt 0:00:06]} 3. Nf3 {[%emt 0:00:03]} c6 {[%emt 0:00:09]} 4. Nc3 {[%emt 0:00:04]} Nf6 {[%emt 0:00:08]} 5. Bg5 {[%emt 0:00:04]} dxc4 {[%emt 0:00:12]} 6. e4 {[%emt 0:00:05]} b5 {[%emt 0:00:07]} 7. e5 {[%emt 0:00:03]} h6 {[%emt 0:00:08]} 8. Bh4 {[%emt 0:00:03]} g5 {[%emt 0:00:09]} 9. Nxg5 {[%emt 0:00:03]} hxg5 {[%emt 0:00:07]} 10. Bxg5 {[%emt 0:00:03]} Be7 {[%emt 0:00:08]} 11. exf6 {[%emt 0:00:04]} Bxf6 {[%emt 0:00:01]} 12. Bxf6 {[%emt 0:00:17]} Qxf6 {[%emt 0:00:01]} 13. g3 {[%emt 0:00:12]} Bb7 {[%emt 0:00:06]} 14. Bg2 {[%emt 0:00:05]} Na6 {[%emt 0:00:09]} 15. Ne4 {[%emt 0:00:14]} Qe7 {[%emt 0:00:05]} 16. O-O {[%emt 0:00:07]} O-O-O {[%emt 0:00:09]} 17. a4 {[%emt 0:03:05]} f5 {[%emt 0:00:11]} 18. Nc3 {[%emt 0:01:12]} b4 {[%emt 0:00:06]} 19. Ne2 {[%emt 0:00:49]} c5 {[%emt 0:00:00]} 20. Bxb7+ {[%emt 0:00:28]} Qxb7 {[%emt 0:00:02]} 21. f3 {[%emt 0:04:18]} cxd4 {[%emt 0:19:32]} 22. Rc1 {[%emt 0:11:23]} c3 {[%emt 0:05:14]} 23. Kg2 {[%emt 0:10:16]} Nc5 {[%emt 0:11:34]} 24. Nxd4 {[%emt 0:05:55]} e5 {[%emt 0:00:37]} 25. bxc3 {[%emt 0:00:05]} b3 {[%emt 0:08:50]} 26. Qe2 {[%emt 0:10:43]} b2 {[%emt 0:03:41]} 27. Rb1 {[%emt 0:00:05]} exd4 {[%emt 0:07:30]} 28. cxd4 {[%emt 0:00:40]} Qh7 {[%emt 0:00:37]} 29. h4 {[%emt 0:02:05]} Rdg8 {[%emt 0:23:50]} 30. dxc5 {[%emt 0:13:01]} Rxg3+ {[%emt 0:00:13]} 31. Kf2 {[%emt 0:00:04]} Rh3 {[%emt 0:06:12]} 32. Qa6+ {[%emt 0:05:04]} Qb7 {[%emt 0:00:32]} 33. Qxb7+ {[%emt 0:01:30]} Kxb7 {[%emt 0:00:01]} 34. Rxb2+ {[%emt 0:00:15]} Kc6 {[%emt 0:00:01]} 35. Ke3 {[%emt 0:02:04]} R8xh4 {[%emt 0:01:09]} 36. Ra1 {[%emt 0:02:28]} Re4+ {[%emt 0:00:13]} 37. Kd2 {[%emt 0:02:02]} Rxf3 {[%emt 0:00:33]} 38. Rb8 {[%emt 0:04:26]} Kxc5 {[%emt 0:03:45]} 39. a5 {[%emt 0:01:00]} Rf2+ {[%emt 0:01:05]} 40. Kd3 {[%emt 0:00:00]} Rf3+ {[%emt 0:00:00]} 41. Kd2 {[%emt 0:00:37]} Kd4 {[%emt 0:16:46]} 42. Ra4+ {[%emt 0:00:50]} Ke5 {[%emt 0:00:10]} 43. Rb5+ {[%emt 0:00:30]} Kf4 {[%emt 0:00:14]} 44. Rxe4+ {[%emt 0:01:05]} fxe4 {[%emt 0:00:14]} 45. Rb7 {[%emt 0:00:35]} Rf2+ {[%emt 0:00:10]} 46. Ke1 {[%emt 0:00:09]} Ra2 {[%emt 0:00:10]} 47. Rxa7 {[%emt 0:01:10]} Kf3 {[%emt 0:00:13]} 48. a6 {[%emt 0:10:00]} Ra1+ {[%emt 0:00:44]} 49. Kd2 {[%emt 0:00:05]} e3+ {[%emt 0:00:14]} 50. Kc2 {[%emt 0:00:41]} e2 {[%emt 0:00:30]} 0-1

[Event "HUN-ch U8-U18 2019"]
[Site "Balatonlelle"]
[Date "2019.06.24"]
[Round "5.19"]
[White "Megyaszai, Balazs"]
[Black "Tran, David"]
[Result "0-1"]
[ECO "C44"]
[WhiteElo "1905"]
[BlackElo "2078"]
[Annotator "NA"]
[PlyCount "120"]
[EventDate "2019.06.21"]
[EventType "swiss"]
[EventCountry "HUN"]
[SourceTitle "playchess.com"]
[Source "ChessBase"]
[SourceQuality "1"]
[TimeControl "40/5400+30:1800+30"]

1. e4 {[%emt 0:00:24]} e5 {[%emt 0:00:05]} 2. Nf3 {[%emt 0:00:53]} Nc6 {[%emt 0:00:27]} 3. d4 {[%emt 0:01:58]} exd4 {[%emt 0:00:08]} 4. Bc4 {[%emt 0:00:59]} Bc5 {[%emt 0:00:05]} 5. Ng5 {[%emt 0:01:25]} Nh6 {[%emt 0:00:06]} 6. Nxf7 {[%emt 0:01:27]} Nxf7 {[%emt 0:00:04]} 7. Bxf7+ {[%emt 0:00:45]} Kxf7 {[%emt 0:00:03]} 8. Qh5+ {[%emt 0:00:42]} g6 {[%emt 0:00:06]} 9. Qxc5 {[%emt 0:00:22]} d6 {[%emt 0:00:05]} 10. Qb5 {[%emt 0:04:14]} a6 {[%emt 0:00:37]} 11. Qe2 {[%emt 0:02:46]} Qf6 {[%emt 0:01:07]} 12. O-O {[%emt 0:02:59]} Re8 {[%emt 0:00:55]} 13. Nd2 {[%emt 0:06:18]} Kg8 {[%emt 0:04:58]} 14. f4 {[%emt 0:08:55]} Bd7 {[%emt 0:08:02]} 15. Qf3 {[%emt 0:06:16]} Rf8 {[%emt 0:13:53]} 16. Nb3 {[%emt 0:14:37]} a5 {[%emt 0:10:01]} 17. Bd2 {[%emt 0:04:27]} a4 {[%emt 0:01:19]} 18. Nc1 {[%emt 0:02:01]} Rae8 {[%emt 0:00:44]} 19. Nd3 {[%emt 0:04:16]} Qe6 {[%emt 0:03:51]} 20. Rfe1 {[%emt 0:06:26]} Ne5 {[%emt 0:18:57]} 21. Qg3 {[%emt 0:01:45]} Nc4 {[%emt 0:09:54]} 22. Bc1 {[%emt 0:06:11]} Qg4 {[%emt 0:06:30]} 23. b3 {[%emt 0:03:28]} Qxg3 {[%emt 0:00:47]} 24. hxg3 {[%emt 0:00:19]} axb3 {[%emt 0:00:13]} 25. axb3 {[%emt 0:01:10]} Nb6 {[%emt 0:00:08]} 26. Ba3 {[%emt 0:03:10]} Rf6 {[%emt 0:03:25]} 27. Rad1 {[%emt 0:06:05]} Bg4 {[%emt 0:02:41]} 28. Ra1 {[%emt 0:02:32]} Rfe6 {[%emt 0:00:35]} 29. e5 {[%emt 0:03:03]} dxe5 {[%emt 0:00:20]} 30. Nxe5 {[%emt 0:00:54]} Nd7 {[%emt 0:00:42]} 31. Nd3 {[%emt 0:01:01]} Rxe1+ {[%emt 0:01:28]} 32. Rxe1 {[%emt 0:00:12]} Rxe1+ {[%emt 0:03:30]} 33. Nxe1 {[%emt 0:00:12]} c5 {[%emt 0:01:18]} 34. Nd3 {[%emt 0:01:07]} b6 {[%emt 0:00:06]} 35. Kf2 {[%emt 0:01:35]} Bd1 {[%emt 0:00:39]} 36. Ne1 {[%emt 0:00:56]} Nf6 {[%emt 0:01:13]} 37. Bc1 {[%emt 0:01:27]} Ne4+ {[%emt 0:01:31]} 38. Kg1 {[%emt 0:00:17]} Nxg3 {[%emt 0:00:08]} 39. Bd2 {[%emt 0:00:40]} Ne4 {[%emt 0:00:38]} 40. Bc1 {[%emt 0:00:00]} Kf7 {[%emt 0:00:00]} 41. Ba3 {[%emt 0:03:11]} Nc3 {[%emt 0:04:54]} 42. g3 {[%emt 0:02:09]} Nd5 {[%emt 0:01:14]} 43. Bc1 {[%emt 0:09:09]} Nb4 {[%emt 0:05:10]} 44. Bd2 {[%emt 0:01:52]} Nxc2 {[%emt 0:01:41]} 45. Nd3 {[%emt 0:00:51]} Na1 {[%emt 0:01:56]} 46. b4 {[%emt 0:00:59]} Nb3 {[%emt 0:00:17]} 47. Be1 {[%emt 0:00:27]} Ke6 {[%emt 0:01:00]} 48. Ne5 {[%emt 0:01:22]} Kd5 {[%emt 0:01:24]} 49. Nd7 {[%emt 0:01:06]} Kc6 {[%emt 0:00:15]} 50. Ne5+ {[%emt 0:00:50]} Kb5 {[%emt 0:00:26]} 51. bxc5 {[%emt 0:00:44]} bxc5 {[%emt 0:00:05]} 52. g4 {[%emt 0:00:40]} c4 {[%emt 0:01:37]} 53. f5 {[%emt 0:00:15]} gxf5 {[%emt 0:00:06]} 54. gxf5 {[%emt 0:00:09]} c3 {[%emt 0:00:24]} 55. f6 {[%emt 0:00:41]} Bh5 {[%emt 0:00:12]} 56. Bg3 {[%emt 0:00:24]} Nc5 {[%emt 0:08:53]} 57. Bf4 {[%emt 0:08:33]} d3 {[%emt 0:01:30]} 58. f7 {[%emt 0:01:29]} Bxf7 {[%emt 0:00:25]} 59. Nxf7 {[%emt 0:00:10]} d2 {[%emt 0:00:04]} 60. Nd6+ {[%emt 0:00:18]} Kc6 {[%emt 0:00:05]} 0-1